[Event "Titled Tuesday Blitz March 21 Early 2023"]
[White "Sanchez, Robert"]
[Black "Winkels, Marcel"]
[WhiteFideId "2034360"]
[BlackFideId "1003887"]
[WhiteElo "2162"]
[BlackElo "1900"]
[Result "0-1"]
[Round "11"]
[TimeControl "180+2"]
[Date "2023.03.21"]
[WhiteClock "0:01:44"]
[BlackClock "0:00:19"]

1. e4 {[%clk 0:03:00]}  c5 {[%clk 0:02:59]} 2. Nf3 {[%clk 0:03:00]}  Nc6 {[%clk 0:03:00]} 3. d4 {[%clk 0:03:01]}  cxd4 {[%clk 0:03:00]} 4. Nxd4 {[%clk 0:03:02]}  e5 {[%clk 0:03:00]} 5. Nb5 {[%clk 0:03:01]}  a6 {[%clk 0:03:00]} 6. Nd6+ {[%clk 0:03:01]}  Bxd6 {[%clk 0:03:00]} 7. Qxd6 {[%clk 0:03:01]}  Qf6 {[%clk 0:03:00]} 8. Qxf6 {[%clk 0:02:58]}  Nxf6 {[%clk 0:02:59]} 9. Nc3 {[%clk 0:02:58]}  b5 {[%clk 0:02:48]} 10. Bg5 {[%clk 0:02:58]}  b4 {[%clk 0:02:30]} 11. Nd5 {[%clk 0:02:52]}  Nxd5 {[%clk 0:02:28]} 12. exd5 {[%clk 0:02:52]}  Nd4 {[%clk 0:02:28]} 13. O-O-O {[%clk 0:02:51]}  d6 {[%clk 0:02:21]} 14. f4 {[%clk 0:02:43]}  Bf5 {[%clk 0:02:17]} 15. fxe5 {[%clk 0:02:41]}  dxe5 {[%clk 0:02:13]} 16. Bd3 {[%clk 0:02:40]}  Bxd3 {[%clk 0:02:04]} 17. Rxd3 {[%clk 0:02:39]}  f6 {[%clk 0:02:02]} 18. Be3 {[%clk 0:02:38]}  Nf5 {[%clk 0:01:59]} 19. Bf2 {[%clk 0:02:38]}  Kd7 {[%clk 0:01:57]} 20. a3 {[%clk 0:02:37]}  a5 {[%clk 0:01:56]} 21. Re1 {[%clk 0:02:34]}  Rhc8 {[%clk 0:01:54]} 22. Kb1 {[%clk 0:02:34]}  Rab8 {[%clk 0:01:50]} 23. Re4 {[%clk 0:02:32]}  Nd6 {[%clk 0:01:45]} 24. Rh4 {[%clk 0:02:31]}  h6 {[%clk 0:01:36]} 25. Rg3 {[%clk 0:02:28]}  Ne8 {[%clk 0:01:26]} 26. axb4 {[%clk 0:02:24]}  Rxb4 {[%clk 0:01:25]} 27. Rxb4 {[%clk 0:02:23]}  axb4 {[%clk 0:01:25]} 28. Rb3 {[%clk 0:02:23]}  Rc4 {[%clk 0:01:23]} 29. Be1 {[%clk 0:02:21]}  Nc7 {[%clk 0:01:18]} 30. Rxb4 {[%clk 0:02:20]}  Rxb4 {[%clk 0:01:17]} 31. Bxb4 {[%clk 0:02:20]}  Nxd5 {[%clk 0:01:17]} 32. Bf8 {[%clk 0:02:20]}  g5 {[%clk 0:01:10]} 33. Bxh6 {[%clk 0:02:20]}  Ke7 {[%clk 0:01:05]} 34. Kc1 {[%clk 0:02:19]}  Kf7 {[%clk 0:01:04]} 35. Kd2 {[%clk 0:02:15]}  Ne7 {[%clk 0:01:02]} 36. h4 {[%clk 0:02:11]}  Kg6 {[%clk 0:00:52]} 37. hxg5 {[%clk 0:02:09]}  fxg5 {[%clk 0:00:51]} 38. Bf8 {[%clk 0:02:10]}  Nd5 {[%clk 0:00:50]} 39. b4 {[%clk 0:02:06]}  Kf7 {[%clk 0:00:47]} 40. Bc5 {[%clk 0:02:02]}  Nf4 {[%clk 0:00:43]} 41. g3 {[%clk 0:01:56]}  Ne6 {[%clk 0:00:42]} 42. Bf2 {[%clk 0:01:53]}  Ke7 {[%clk 0:00:39]} 43. Ke3 {[%clk 0:01:49]}  Kd6 {[%clk 0:00:38]} 44. Ke4 {[%clk 0:01:49]}  Nc7 {[%clk 0:00:28]} 45. c4 {[%clk 0:01:45]}  Ke6 {[%clk 0:00:23]} 46. b5 {[%clk 0:01:45]}  Ne8 {[%clk 0:00:20]} 47. b6 {[%clk 0:01:44]}  Nd6+ {[%clk 0:00:19]} 0-1


[Site "https://www.chess.com"]

[Event "Titled Tuesday Blitz March 21 Early 2023"]
[White "Vargas Pereda, Jesus Manue"]
[Black "Palacio,Igor Da Paz"]
[WhiteFideId "5115710"]
[BlackFideId "2121140"]
[WhiteElo "1914"]
[BlackElo "2126"]
[Result "0-1"]
[Round "11"]
[TimeControl "180+2"]
[Date "2023.03.21"]
[WhiteClock "0:00:16"]
[BlackClock "0:00:20"]

1. d4 {[%clk 0:02:58]}  Nf6 {[%clk 0:02:59]} 2. Bf4 {[%clk 0:02:57]}  d6 {[%clk 0:02:59]} 3. Nc3 {[%clk 0:02:56]}  b6 {[%clk 0:02:58]} 4. Nf3 {[%clk 0:02:55]}  Bb7 {[%clk 0:02:59]} 5. Bg5 {[%clk 0:02:50]}  Nbd7 {[%clk 0:02:57]} 6. Qd3 {[%clk 0:02:43]}  c5 {[%clk 0:02:47]} 7. e4 {[%clk 0:02:42]}  cxd4 {[%clk 0:02:46]} 8. Nxd4 {[%clk 0:02:38]}  a6 {[%clk 0:02:44]} 9. f3 {[%clk 0:02:33]}  h6 {[%clk 0:02:42]} 10. Be3 {[%clk 0:02:12]}  e6 {[%clk 0:02:42]} 11. O-O-O {[%clk 0:02:10]}  Rc8 {[%clk 0:02:40]} 12. Kb1 {[%clk 0:01:55]}  Be7 {[%clk 0:02:38]} 13. g4 {[%clk 0:01:50]}  Ne5 {[%clk 0:02:34]} 14. Qd2 {[%clk 0:01:46]}  Qc7 {[%clk 0:02:30]} 15. h4 {[%clk 0:01:41]}  Nfd7 {[%clk 0:02:20]} 16. Be2 {[%clk 0:01:24]}  Nc4 {[%clk 0:02:18]} 17. Bxc4 {[%clk 0:01:23]}  Qxc4 {[%clk 0:02:18]} 18. g5 {[%clk 0:01:22]}  h5 {[%clk 0:01:53]} 19. g6 {[%clk 0:01:17]}  f6 {[%clk 0:01:53]} 20. f4 {[%clk 0:01:15]}  b5 {[%clk 0:01:17]} 21. f5 {[%clk 0:01:12]}  b4 {[%clk 0:00:50]} 22. fxe6 {[%clk 0:01:11]}  bxc3 {[%clk 0:00:46]} 23. exd7+ {[%clk 0:01:11]}  Kxd7 {[%clk 0:00:47]} 24. Qxc3 {[%clk 0:01:07]}  Qxc3 {[%clk 0:00:45]} 25. bxc3 {[%clk 0:01:07]}  Bxe4 {[%clk 0:00:44]} 26. Rhe1 {[%clk 0:01:04]}  f5 {[%clk 0:00:41]} 27. Ne2 {[%clk 0:00:56]}  Bxh4 {[%clk 0:00:38]} 28. Bd4 {[%clk 0:00:51]}  Bxe1 {[%clk 0:00:37]} 29. Rxe1 {[%clk 0:00:50]}  Rb8+ {[%clk 0:00:38]} 30. Kc1 {[%clk 0:00:49]}  Rbg8 {[%clk 0:00:37]} 31. Nf4 {[%clk 0:00:48]}  h4 {[%clk 0:00:37]} 32. Nh3 {[%clk 0:00:48]}  Bg2 {[%clk 0:00:36]} 33. Ng5 {[%clk 0:00:47]}  h3 {[%clk 0:00:35]} 34. Nf7 {[%clk 0:00:46]}  Rh5 {[%clk 0:00:33]} 35. Rd1 {[%clk 0:00:40]}  h2 {[%clk 0:00:32]} 36. Kb2 {[%clk 0:00:25]}  h1=Q {[%clk 0:00:31]} 37. Bg1 {[%clk 0:00:25]}  Bd5 {[%clk 0:00:26]} 38. c4 {[%clk 0:00:23]}  Bxf7 {[%clk 0:00:26]} 39. gxf7 {[%clk 0:00:23]}  Rb8+ {[%clk 0:00:24]} 40. Kc3 {[%clk 0:00:22]}  Rh3+ {[%clk 0:00:24]} 41. Kd2 {[%clk 0:00:18]}  Qg2+ {[%clk 0:00:24]} 42. Kc1 {[%clk 0:00:18]}  Qg5+ {[%clk 0:00:20]} 43. Rd2 {[%clk 0:00:17]}  Qxg1+ {[%clk 0:00:20]} 44. Rd1 {[%clk 0:00:16]}  Qe3+ {[%clk 0:00:20]} 45. Rd2 {[%clk 0:00:16]}  Rh1# {[%clk 0:00:20]} 0-1


[Site "https://www.chess.com"]

[Event "Titled Tuesday Blitz March 21 Early 2023"]
[White "Prado, Alexandra"]
[Black "Vargas, Mauricio"]
[WhiteFideId "3301346"]
[BlackFideId "4404572"]
[WhiteElo "1759"]
[BlackElo "2025"]
[Result "0-1"]
[Round "11"]
[TimeControl "180+2"]
[Date "2023.03.21"]
[WhiteClock "0:00:10"]
[BlackClock "0:00:09"]

1. e4 {[%clk 0:02:59]}  d5 {[%clk 0:02:59]} 2. exd5 {[%clk 0:02:58]}  Qxd5 {[%clk 0:02:58]} 3. d4 {[%clk 0:02:52]}  c6 {[%clk 0:02:58]} 4. c4 {[%clk 0:02:49]}  Qa5+ {[%clk 0:02:57]} 5. Nc3 {[%clk 0:02:48]}  Nf6 {[%clk 0:02:56]} 6. Nf3 {[%clk 0:02:34]}  Bg4 {[%clk 0:02:56]} 7. Be2 {[%clk 0:02:33]}  Nbd7 {[%clk 0:02:54]} 8. O-O {[%clk 0:02:30]}  e6 {[%clk 0:02:52]} 9. Bd2 {[%clk 0:02:11]}  Qc7 {[%clk 0:02:51]} 10. h3 {[%clk 0:02:07]}  Bh5 {[%clk 0:02:47]} 11. Bg5 {[%clk 0:02:00]}  Be7 {[%clk 0:02:45]} 12. Rc1 {[%clk 0:01:44]}  O-O {[%clk 0:02:43]} 13. Bxf6 {[%clk 0:01:18]}  Nxf6 {[%clk 0:02:42]} 14. d5 {[%clk 0:01:15]}  exd5 {[%clk 0:02:09]} 15. cxd5 {[%clk 0:01:15]}  Qf4 {[%clk 0:02:06]} 16. dxc6 {[%clk 0:01:10]}  bxc6 {[%clk 0:01:57]} 17. Qa4 {[%clk 0:01:09]}  Bd6 {[%clk 0:01:41]} 18. Qxf4 {[%clk 0:00:50]}  Bxf4 {[%clk 0:01:40]} 19. Rcd1 {[%clk 0:00:50]}  Rfe8 {[%clk 0:01:39]} 20. g4 {[%clk 0:00:48]}  Bg6 {[%clk 0:01:29]} 21. Bc4 {[%clk 0:00:40]}  Ne4 {[%clk 0:01:08]} 22. Rd4 {[%clk 0:00:27]}  Nxc3 {[%clk 0:00:44]} 23. Rxf4 {[%clk 0:00:24]}  Ne2+ {[%clk 0:00:33]} 24. Bxe2 {[%clk 0:00:24]}  Rxe2 {[%clk 0:00:33]} 25. Rb4 {[%clk 0:00:20]}  c5 {[%clk 0:00:20]} 26. Rb5 {[%clk 0:00:17]}  c4 {[%clk 0:00:18]} 27. Rc1 {[%clk 0:00:14]}  Bd3 {[%clk 0:00:17]} 28. Nd4 {[%clk 0:00:13]}  Re7 {[%clk 0:00:11]} 29. b3 {[%clk 0:00:12]}  cxb3 {[%clk 0:00:09]} 30. Nxb3 {[%clk 0:00:10]}  Bxb5 {[%clk 0:00:09]} 0-1